bitfinex/quotes_SOLUSD_20220118
["timestamp","ask_amount","ask_price","bid_price","bid_amount"]
[1642529061734,44.68806265,136.2,136.12,0.25]
[1642529061935,41.75206265,136.2,136.12,0.25]
[1642529062562,41.75206265,136.2,136.13,11.0185]
[1642529062736,41.75206265,136.2,136.14,0.25]
[1642529063937,41.75206265,136.2,136.11,93.66524265]
[1642529065241,41.75206265,136.2,136.12,0.25]
[1642529065440,41.75206265,136.2,136.13,11.0198]
[1642529065640,13.06186265,136.19,136.13,11.0198]
[1642529065840,13.06186265,136.19,136.14,0.25]
[1642529066244,12.56186265,136.19,136.14,0.25]
[1642529066444,1.54266265,136.18,136.14,0.25]
[1642529067344,1.54266265,136.18,136.12,0.25]
[1642529067547,1.54266265,136.18,136.14,11.0192]
[1642529067745,1.54266265,136.18,136.15,0.25]
[1642529068146,11.0192,136.19,136.15,0.25]
[1642529068345,43.39082439,136.2,136.15,0.25]
[1642529068943,39.7093,136.2,136.13,0.25]
[1642529069545,39.7093,136.2,136.15,11.0182]
[1642529070849,2.936,136.21,136.15,11.0182]
[1642529071048,2.936,136.21,136.16,0.25]
[1642529071251,26.26762439,136.22,136.17,11.0152]
[1642529071649,26.26762439,136.22,136.18,0.25]
[1642529071851,26.26762439,136.22,136.17,45.03644564]
[1642529072349,26.26762439,136.22,136.18,0.25]
[1642529072952,22.5861,136.22,136.18,0.25]
[1642529073551,22.5861,136.22,136.18,11.2652]
[1642529074051,13.9517,136.23,136.18,11.2652]
[1642529074452,6.0,136.22,136.18,11.2652]
[1642529075554,13.9517,136.23,136.18,11.2652]
[1642529075756,13.9509,136.24,136.18,11.2652]
[1642529076054,6.0,136.23,136.18,11.2652]
[1642529076259,6.25,136.23,136.18,11.2652]
[1642529076956,17.2655,136.23,136.15,21.4881]
[1642529077156,2.936,136.22,136.15,11.0181]
[1642529077354,2.936,136.22,136.12,36.7246]
[1642529077588,2.936,136.22,136.11,13.406]
[1642529077589,6.25,136.21,136.11,13.406]
[1642529077787,2.936,136.2,136.1,23.9635]
[1642529077988,26.7286,136.2,136.1,70.42368043]
[1642529078190,6.0,136.19,136.1,70.42368043]
[1642529078389,11.0219,136.17,136.11,11.0212]
[1642529078589,11.0219,136.17,136.09,34.3784]
[1642529078793,11.0219,136.17,136.1,0.25]
[1642529078995,11.0219,136.17,136.09,10.47]
[1642529079391,2.938,136.16,136.1,11.0221]
[1642529079590,2.938,136.16,136.09,10.47]
[1642529079591,11.0232,136.15,136.08,2.936]
[1642529079791,3.188,136.14,136.05,61.29698856]
[1642529079995,9.188,136.14,136.05,61.29698856]
[1642529080391,9.188,136.14,136.05,12.16525692]
[1642529080593,11.0254,136.12,136.05,11.026]
[1642529080895,3.189,136.11,136.04,10.47]
[1642529081091,9.189,136.11,136.04,10.47]
[1642529081692,9.189,136.11,136.05,0.25]
[1642529081892,11.0263,136.1,136.05,0.25]
[1642529082493,6.25,136.11,136.05,0.25]
[1642529082494,2.939,136.13,136.05,0.25]
[1642529082694,27.1961,136.15,136.05,12.25905272]
[1642529083093,11.0246,136.12,136.07,11.0246]
[1642529083396,11.0246,136.12,136.08,38.37176876]
[1642529083595,2.939,136.13,136.08,38.37176876]
[1642529084193,2.939,136.13,136.05,12.25905272]
[1642529084394,2.939,136.13,136.06,0.25]
[1642529085196,2.939,136.13,136.06,48.98081015]
[1642529085397,13.9628,136.13,136.08,11.0238]
[1642529085596,11.0238,136.13,136.08,11.0238]
[1642529088701,3.188,136.12,136.06,48.98081015]
[1642529088900,8.938,136.12,136.07,11.0246]
[1642529089101,19.9626,136.12,136.07,11.0246]
[1642529090303,17.0246,136.12,136.08,0.25]
[1642529092304,17.0246,136.12,136.07,11.0246]
[1642529092505,17.0246,136.12,136.06,55.65244919]
[1642529092704,17.0246,136.12,136.07,0.25]
[1642529093107,17.0246,136.12,136.06,55.65244919]
[1642529093305,2.939,136.11,136.06,11.0252]
[1642529093504,13.9643,136.11,136.06,11.0252]
[1642529099042,13.9643,136.11,136.05,21.496]
[1642529099844,13.9643,136.11,136.06,0.25]
[1642529100255,13.9643,136.11,136.05,21.496]
[1642529100448,13.9643,136.11,136.06,0.25]
[1642529100849,11.0271,136.09,136.05,10.47]
[1642529101649,6.0,136.1,136.05,10.47]
[1642529102247,6.0,136.1,136.02,10.47]
[1642529102448,40.1068,136.1,136.05,11.0262]
[1642529102648,40.1068,136.1,136.02,10.72]
[1642529102849,2.939,136.09,136.02,10.72]
[1642529104548,13.9661,136.09,136.03,11.0276]
[1642529104848,13.9661,136.09,136.04,0.25]
[1642529105048,13.9661,136.09,136.02,10.72]
[1642529106452,13.9661,136.09,136.04,11.0267]
[1642529110752,13.9661,136.09,136.03,11.0279]
[1642529111654,13.9661,136.09,136.0,2.939]
[1642529111655,6.25,136.08,136.0,2.939]
[1642529111856,11.0303,136.06,136.0,10.47]
[1642529112053,8.94,136.05,135.97,10.47]
[1642529112253,9.19,136.05,135.95,64.83592619]
[1642529112455,22.916,136.04,135.95,4.12992619]
[1642529112653,8.941,136.03,135.93,39.38861081]
[1642529112853,11.0344,136.0,135.93,39.38861081]
[1642529113056,6.0,135.99,135.93,39.38861081]
[1642529113253,6.0,135.99,135.92,14.59992619]
[1642529113753,2.942,135.98,135.92,10.47]
[1642529113954,19.9771,135.99,135.93,11.0357]
[1642529114154,17.0351,135.99,135.94,34.44665308]
[1642529114558,2.942,136.01,135.94,34.44665308]
[1642529114954,17.0342,136.0,135.95,11.2842]
[1642529115555,2.942,136.01,135.95,11.2842]
[1642529115758,2.941,136.04,135.95,23.54325272]
[1642529116558,24.5378,136.05,135.95,23.54325272]
[1642529116758,24.5378,136.05,135.95,23.80325272]
[1642529116959,2.941,136.08,135.95,23.80325272]
[1642529117162,13.9688,136.08,135.95,23.80325272]
[1642529117360,2.941,136.08,135.96,6.0]
[1642529117562,2.941,136.08,135.99,11.027]
[1642529117760,22.8584,136.09,136.0,13.66]
[1642529118160,22.8584,136.09,136.0,10.72]
[1642529118362,22.8584,136.09,136.01,41.57195062]
[1642529118564,2.94,136.11,136.02,10.47]
[1642529118765,2.94,136.11,136.02,24.6852]
[1642529118766,13.9655,136.11,136.02,24.6852]
[1642529121768,0.25,136.1,136.02,24.6852]
[1642529121966,13.9664,136.09,136.02,21.7462]
[1642529122167,13.9664,136.09,136.02,21.4962]
[1642529122371,6.25,136.08,136.02,11.0262]
[1642529122599,2.94,136.07,136.02,11.0262]
[1642529122804,2.94,136.07,136.01,11.0289]
[1642529122997,8.94496131,136.06,136.0,0.25]
[1642529123197,8.94496131,136.06,135.98,10.47]
[1642529123198,2.94,136.05,135.98,10.47]
[1642529123399,2.94,136.05,135.99,0.25]
[1642529123601,6.0,136.04,135.99,0.25]
[1642529124200,17.0313,136.04,135.99,0.25]
[1642529124800,6.0,136.04,135.99,0.25]
[1642529125003,2.94,136.05,135.99,0.25]
[1642529125201,2.94,136.06,135.99,0.25]
[1642529125399,9.19,136.06,135.99,0.25]
[1642529126503,11.0302,136.05,135.99,11.2806]
[1642529126702,17.0302,136.05,135.99,11.2806]
[1642529127302,17.0302,136.05,136.0,36.37967535]
[1642529127603,11.0302,136.05,136.0,47.40957535]
[1642529127802,11.0302,136.05,136.01,0.25]
[1642529128001,11.0302,136.05,136.0,47.40957535]
[1642529128201,13.9694,136.06,136.0,11.0299]
[1642529128501,6.0,136.05,136.0,11.0299]
[1642529128703,13.9694,136.06,135.99,11.0307]
[1642529128902,0.25,136.05,135.98,10.47]
[1642529129102,2.94,136.04,135.95,51.24624969]
[1642529129303,11.0322,136.03,135.95,51.49624969]
[1642529129506,2.941,136.02,135.95,51.49624969]
[1642529130410,24.8743,136.05,135.95,51.49624969]
[1642529130411,2.941,136.04,135.97,11.0322]
[1642529130811,2.941,136.04,135.98,0.25]
[1642529131613,2.941,136.04,135.99,11.0305]
[1642529133853,2.941,136.04,135.98,47.9876944]
[1642529134016,13.9718,136.04,135.98,47.9876944]
[1642529134916,6.0,136.03,135.98,0.25]
[1642529135117,17.0322,136.03,135.98,0.25]
[1642529136418,6.0,136.03,135.98,0.25]
[1642529136617,2.941,136.04,135.99,44.44524099]
[1642529137018,2.941,136.04,136.0,0.25]
[1642529137219,24.8743,136.05,136.0,0.25]
[1642529137616,24.8743,136.05,136.0,11.279]
[1642529137822,24.8743,136.05,136.0,11.029]
[1642529138520,2.94,136.04,136.0,11.029]
[1642529139919,24.8743,136.05,136.0,11.029]
[1642529140720,22.5486,136.07,136.01,0.25]
[1642529140921,22.5486,136.07,136.02,11.0279]
[1642529141349,22.5486,136.07,136.03,0.25]
[1642529141521,22.5486,136.07,136.03,40.74355985]
[1642529141721,11.0277,136.08,136.03,40.74355985]
[1642529142223,25.9357,136.1,136.03,51.77105985]
[1642529142224,2.94,136.1,136.03,51.77105985]
[1642529142623,6.0,136.09,136.03,51.77105985]
[1642529143026,6.0,136.1,136.03,51.77105985]
[1642529143225,2.939,136.09,136.03,51.77105985]
[1642529143424,2.939,136.09,136.03,58.73605985]
[1642529143625,6.0,136.08,136.03,58.73605985]
[1642529144125,6.0,136.09,136.03,58.73605985]
[1642529144526,6.0,136.09,136.03,51.77105985]
[1642529144726,6.0,136.09,136.03,11.2775]
[1642529146234,6.0,136.09,136.04,41.77795302]
[1642529146430,17.0274,136.09,136.04,41.77795302]
[1642529146632,6.0,136.08,136.04,52.80435302]
[1642529146833,23.0788,136.11,136.04,52.80435302]
[1642529147035,8.939,136.1,136.04,52.80435302]
[1642529147433,19.9654,136.1,136.04,52.80435302]
[1642529149660,13.9654,136.1,136.04,52.80435302]
[1642529150060,2.939,136.1,136.04,52.80435302]
[1642529151063,6.0,136.09,136.04,52.80435302]
[1642529152063,6.0,136.09,136.04,11.0264]
[1642529158971,6.0,136.09,136.04,45.90300221]
[1642529159371,2.939,136.1,136.04,52.14700221]
[1642529159572,22.8288,136.11,136.06,11.0244]
[1642529159873,2.939,136.13,136.07,0.25]
[1642529160071,30.66922439,136.14,136.07,0.25]
[1642529160271,26.9877,136.14,136.07,0.25]
[1642529160471,38.011,136.14,136.07,0.25]
[1642529160679,26.9877,136.14,136.07,11.2735]
[1642529160872,26.9877,136.14,136.07,48.38426133]
[1642529161072,26.9877,136.14,136.08,0.25]
[1642529161472,0.25,136.13,136.04,13.409]
[1642529161672,2.939,136.12,136.04,13.409]
[1642529162073,6.25,136.11,136.04,13.409]
[1642529162274,2.939,136.1,136.04,13.409]
[1642529162673,6.0,136.09,136.04,13.409]
[1642529162973,13.967,136.1,136.04,13.409]
[1642529163176,13.967,136.1,136.04,10.47]
[1642529163875,6.0,136.09,136.04,10.47]
[1642529164074,11.0271,136.09,136.04,10.47]
[1642529165876,11.0271,136.09,136.03,11.0273]
[1642529166077,13.9672,136.08,136.02,11.0282]
[1642529166277,19.9672,136.08,135.99,10.47]
[1642529166478,0.25,136.07,135.99,10.47]
[1642529166786,2.94,136.06,136.0,0.25]
[1642529166977,2.94,136.06,135.98,1.78905272]
[1642529166978,0.25,136.05,135.97,69.38212453]
[1642529167178,2.94,136.04,135.98,0.25]
[1642529167604,13.9712,136.04,135.98,11.2812]
[1642529167876,6.0,136.03,135.98,0.25]
[1642529168078,6.0,136.03,135.97,10.47]
[1642529168281,2.941,136.02,135.98,0.25]
[1642529168478,8.79115002,136.04,135.98,0.25]
[1642529168677,2.94,136.03,135.98,0.25]
[1642529168877,2.94,136.03,135.98,0.17829642]
[1642529169280,0.25,136.02,135.95,13.41]
[1642529169481,2.941,136.01,135.92,29.60825272]
[1642529169679,2.941,136.01,135.93,16.47]
[1642529170080,2.941,136.01,135.94,40.12824876]
[1642529170580,13.9753,136.01,135.95,11.2836]
[1642529171480,2.941,136.01,135.95,11.2836]
[1642529171681,2.941,136.03,135.95,11.2836]
[1642529171881,2.941,136.03,135.95,23.54265272]
[1642529172783,2.941,136.03,135.95,26.48365272]
[1642529173683,2.941,136.03,135.95,23.54265272]
[1642529174485,13.9731,136.03,135.95,23.54265272]
[1642529175989,11.0321,136.03,135.95,23.54265272]
[1642529176787,14.40648772,136.03,135.95,23.54265272]
[1642529177188,11.0321,136.03,135.95,23.54265272]
[1642529177388,2.941,136.02,135.95,23.54265272]
[1642529177789,57.691,136.05,135.95,96.78265272]
[1642529177991,46.6608,136.05,135.95,96.78265272]
[1642529178190,46.6608,136.05,135.95,97.04265272]
[1642529178592,46.6608,136.05,135.96,6.0]
[1642529178789,46.6608,136.05,135.98,11.0287]
[1642529178990,13.9696,136.07,135.98,11.0287]
[1642529179191,13.9696,136.07,135.99,10.72]
[1642529179391,11.0286,136.07,135.99,10.72]
[1642529180092,1.11827159,136.06,135.99,10.72]
[1642529180394,11.0305,136.05,135.99,10.72]
[1642529180692,11.0305,136.05,135.99,10.47]
[1642529180895,2.94,136.04,135.99,10.47]
[1642529181296,2.94,136.05,135.99,10.47]
[1642529181495,3.19,136.05,135.99,10.47]
[1642529181898,17.0316,136.04,135.99,10.47]
[1642529182097,11.0316,136.04,135.99,10.47]
[1642529182296,11.0316,136.04,136.0,0.25]
[1642529183126,13.9703,136.05,136.0,0.25]
[1642529183320,6.0,136.04,135.99,21.5003]
[1642529183821,6.0,136.04,136.0,0.25]
[1642529184420,17.031,136.04,135.99,21.5003]
[1642529185023,17.031,136.04,135.99,10.47]
[1642529185221,2.94,136.03,135.99,10.47]
[1642529185622,13.9723,136.03,135.99,10.47]
[1642529186625,6.25,136.02,135.94,13.41]
[1642529186822,11.0346,136.0,135.94,13.41]
[1642529187224,3.191,135.99,135.94,13.41]
[1642529187423,12.27097847,135.99,135.94,2.94]
[1642529187823,9.191,135.99,135.94,2.94]
[1642529188028,3.191,135.99,135.94,2.94]
[1642529188226,0.25,135.99,135.94,2.94]
[1642529188424,13.9774,135.98,135.94,2.94]
[1642529188825,13.9774,135.98,135.92,11.0364]
[1642529189025,13.9774,135.98,135.93,0.25]
[1642529189629,2.941,135.98,135.93,11.2854]
[1642529189926,24.8397,136.0,135.93,11.2854]
[1642529190733,2.942,136.01,135.93,11.2854]
[1642529190931,6.0,136.02,135.94,10.47]
[1642529191132,11.0336,136.01,135.95,11.0339]
[1642529191331,11.0336,136.01,135.95,55.78678176]
[1642529191934,11.0336,136.01,135.95,11.2839]
[1642529193135,17.0342,136.0,135.95,11.2839]
[1642529193535,2.941,136.03,135.95,11.2839]
[1642529193738,6.0,136.02,135.95,11.2839]
[1642529194635,11.0336,136.01,135.95,11.2839]
[1642529195036,6.0,136.0,135.95,11.2839]
[1642529195836,11.0334,136.01,135.95,11.2839]
[1642529196438,11.0334,136.01,135.94,21.5046]
[1642529196637,11.0355,135.99,135.94,10.47]
[1642529197739,2.941,135.98,135.94,10.47]
[1642529197940,13.9768,135.98,135.94,10.47]
[1642529198142,21.9738,135.98,135.94,10.47]
[1642529199744,6.0,135.97,135.94,10.47]
[1642529200145,5.56439993,135.96,135.9,12.54179004]
[1642529200345,5.56439993,135.96,135.9,2.07179004]
[1642529200346,2.942,135.95,135.9,2.07179004]
[1642529200543,8.942,135.95,135.9,2.07179004]
[1642529201144,8.942,135.95,135.9,44.65646466]
[1642529201446,8.942,135.95,135.9,42.58467462]
[1642529202446,19.9804,135.95,135.9,42.58467462]
[1642529203245,19.9804,135.95,135.91,0.25]
[1642529203444,11.0384,135.95,135.91,0.25]
[1642529205148,11.0384,135.95,135.9,42.58467462]
[1642529205349,11.0376,135.96,135.9,53.62227462]
[1642529205548,2.942,135.99,135.91,0.25]
[1642529205748,24.7197,136.0,135.92,13.412]
[1642529205949,24.7197,136.0,135.93,38.79706828]
[1642529206149,27.6607,136.0,135.93,49.51706828]
[1642529206348,2.941,136.0,135.95,11.0331]
[1642529206550,4.91050467,136.01,135.95,11.0331]
[1642529206848,4.91050467,136.01,135.96,0.25]
[1642529207349,2.941,136.01,135.97,11.0327]
[1642529207748,13.9743,136.01,135.96,0.25]
[1642529207949,11.0333,136.01,135.94,0.25]
[1642529208551,11.0333,136.01,135.96,41.48254273]
[1642529208751,17.0342,136.0,135.96,41.48254273]
[1642529208976,11.0342,136.0,135.96,41.48254273]
[1642529209179,13.9752,136.0,135.96,41.48254273]
[1642529209377,13.9752,136.0,135.94,0.25]
[1642529210479,13.9752,136.0,135.95,11.0337]
[1642529210679,6.25,135.99,135.95,11.0337]
[1642529210880,17.2853,135.99,135.91,2.941]
[1642529211079,2.942,135.98,135.9,12.54179004]
[1642529211486,6.0,135.97,135.9,12.54179004]
[1642529211679,2.942,135.96,135.9,58.82971972]
[1642529211878,9.887,135.96,135.9,12.54179004]
[1642529212178,6.0,135.95,135.9,23.57969004]
[1642529212379,6.0,135.95,135.9,12.54179004]
[1642529212578,6.0,135.95,135.88,24.68502902]
[1642529212579,6.0,135.94,135.88,24.68502902]
[1642529212779,2.942,135.95,135.88,0.07962902]
[1642529212979,6.0,135.93,135.88,0.07962902]
[1642529213279,6.0,135.94,135.88,0.07962902]
[1642529214080,11.0405,135.93,135.88,0.07962902]
[1642529214282,18.5025,135.93,135.88,0.07962902]
[1642529214479,6.0,135.92,135.88,0.32962902]
[1642529214881,2.943,135.99,135.88,0.07962902]
[1642529215087,2.943,135.99,135.89,15.20105272]
[1642529215282,1.96950467,136.0,135.9,73.49]
[1642529215482,1.96950467,136.0,135.91,58.45503186]
[1642529215682,2.942,135.99,135.92,0.25]
[1642529215882,2.942,135.99,135.93,10.47]
[1642529216086,1.96950467,136.0,135.94,11.0334]
[1642529216282,1.96950467,136.0,135.95,2.941]
[1642529216482,1.96950467,136.0,135.95,15.20005272]
[1642529216682,1.96950467,136.0,135.96,0.25]
[1642529217085,28.95620467,136.03,135.96,0.25]
[1642529217283,26.01520467,136.03,135.96,0.25]
[1642529217782,26.01520467,136.03,135.96,11.2811]
[1642529218183,6.0,136.02,135.96,11.2811]
[1642529218383,8.941,136.02,135.96,11.2811]
[1642529220084,9.53402424,136.02,135.96,11.2811]
[1642529221089,9.53402424,136.02,135.96,0.25]
[1642529221685,0.25,136.01,135.93,10.47]
[1642529221887,76.181,136.0,135.91,10.47]
[1642529222087,6.0,135.99,135.91,10.47]
[1642529222286,2.942,135.98,135.91,21.5075]
[1642529222687,6.25,135.97,135.91,21.5075]
[1642529222888,2.942,135.96,135.91,21.5075]
[1642529223290,2.942,135.96,135.91,11.0375]
[1642529223490,6.0,135.97,135.91,11.0375]
[1642529224492,2.942,135.98,135.91,11.0375]
[1642529225291,6.0,135.97,135.91,11.0375]
[1642529226193,6.0,135.97,135.92,0.25]
[1642529226493,6.0,135.97,135.93,11.035]
[1642529226894,6.0,135.98,135.93,11.035]
[1642529227100,2.942,135.99,135.94,43.06058087]
[1642529227296,1.96950467,136.01,135.95,60.47]
[1642529227495,1.96950467,136.01,135.95,79.29015272]
[1642529227694,1.96950467,136.01,135.96,0.25]
[1642529227897,3.68152439,136.04,135.97,13.411]
[1642529228094,3.68152439,136.04,135.98,6.0]
[1642529228294,3.68152439,136.04,135.99,45.57944318]
[1642529228595,6.1701901,136.06,135.99,58.3939959]
[1642529228794,2.04200822,136.06,136.0,10.72]
[1642529228995,2.04200822,136.06,136.01,2.94]
[1642529229194,2.04200822,136.06,136.02,10.72]
[1642529229397,2.04200822,136.06,136.03,2.94]
[1642529229594,2.04200822,136.06,136.04,0.5]
[1642529229796,2.04200822,136.06,136.05,11.0233]
[1642529229996,2.04200822,136.11,136.05,11.0233]
[1642529230194,2.04200822,136.11,136.06,0.25]
[1642529230494,2.04200822,136.11,136.06,7.448]
[1642529230694,2.04200822,136.11,136.07,2.939]
[1642529231094,2.04200822,136.11,136.08,43.406942]
[1642529231295,2.04200822,136.14,136.09,21.9904]
[1642529231496,2.04200822,136.14,136.09,30.3004]
[1642529231696,2.04200822,136.14,136.1,0.25]
[1642529232298,2.04200822,136.14,136.11,11.0197]
[1642529232498,11.47019996,136.13,136.09,10.47]
[1642529232797,8.50239993,136.13,136.09,10.47]
[1642529233097,5.56439993,136.13,136.09,10.47]
[1642529233397,2.938,136.16,136.09,21.4926]
[1642529233599,4.98000822,136.16,136.09,21.4926]
[1642529233798,4.98000822,136.16,136.1,0.25]
[1642529234397,4.98000822,136.16,136.11,11.0196]
[1642529234599,2.938,136.16,136.11,11.0196]
[1642529234800,2.938,136.16,136.12,0.25]
[1642529235000,116.24200822,136.17,136.12,0.25]
[1642529235424,114.2,136.17,136.13,11.0174]
[1642529235625,114.2,136.17,136.13,52.72061979]
[1642529235928,114.2,136.17,136.13,11.0174]
[1642529236724,114.2,136.17,136.14,0.25]
[1642529236929,114.2,136.17,136.15,11.515]
[1642529237326,114.2,136.17,136.16,0.25]
[1642529239919,117.23219997,136.17,136.13,0.25]
[1642529240316,117.23219997,136.17,136.16,11.0162]
[1642529240517,114.2,136.17,136.16,46.76492294]
[1642529240717,114.2,136.17,136.16,11.0162]
[1642529240916,114.2,136.17,136.16,11.5162]
[1642529241519,5.56439993,136.17,136.15,11.0176]
[1642529241918,2.936,136.19,136.13,0.25]
[1642529242117,2.936,136.19,136.12,10.47]
[1642529242722,2.936,136.19,136.13,11.0192]
[1642529243725,2.936,136.19,136.14,11.268]
[1642529243931,2.936,136.2,136.14,11.268]
[1642529244124,6.0,136.19,136.15,44.43108332]
[1642529245128,2.936,136.2,136.15,55.44848332]
[1642529246354,23.7242,136.21,136.15,55.44848332]
[1642529246528,23.7242,136.21,136.17,11.0155]
[1642529246728,25.7035,136.23,136.17,11.0155]
[1642529247130,25.7035,136.23,136.16,0.25]
[1642529247328,25.7035,136.23,136.14,2.936]
[1642529247329,6.25,136.22,136.14,2.936]
[1642529247531,2.936,136.21,136.14,2.936]
[1642529247731,0.25,136.2,136.14,2.936]
[1642529247929,2.936,136.19,136.14,2.936]
[1642529248129,2.936,136.21,136.14,2.936]
[1642529248333,3.186,136.21,136.14,2.936]
[1642529248530,3.186,136.21,136.14,44.82751718]
[1642529248731,3.186,136.21,136.14,55.84591718]
[1642529248930,3.186,136.21,136.14,13.9544]
[1642529250136,14.2042,136.21,136.14,13.9544]
[1642529251237,14.2042,136.21,136.14,11.0184]
[1642529252139,15.16407821,136.21,136.14,11.0184]
[1642529252339,15.16407821,136.21,136.12,2.936]
[1642529252340,6.0,136.2,136.12,2.936]
[1642529252643,13.9556,136.19,136.12,2.936]
[1642529252841,14.2056,136.19,136.12,2.936]
[1642529253039,6.0,136.18,136.12,2.936]
[1642529253241,3.186,136.17,136.12,2.936]
[1642529253440,3.186,136.17,136.04,25.7238]
[1642529253641,6.0,136.16,136.04,25.7238]
[1642529253861,2.939,136.15,136.04,22.7858]
[1642529254062,6.0,136.14,136.03,13.409]
[1642529254263,3.189,136.13,136.04,6.0]
[1642529254462,6.0,136.12,136.05,49.80251795]
[1642529254662,2.939,136.11,136.05,49.80251795]
[1642529254871,2.939,136.11,136.06,0.25]
[1642529256566,2.939,136.11,136.06,11.2749]
[1642529257166,19.9644,136.12,136.06,0.25]
[1642529257969,19.9644,136.12,136.06,11.2748]
[1642529258471,2.939,136.12,136.06,11.2748]
[1642529258668,2.939,136.12,136.06,13.06385272]
[1642529258872,2.939,136.12,136.06,11.2748]
[1642529259469,2.04200822,136.13,136.06,14.2138]
[1642529259976,2.04200822,136.13,136.06,16.00285272]
[1642529260369,2.04200822,136.13,136.06,26.47285272]
[1642529262171,2.04200822,136.15,136.06,26.47285272]
[1642529263373,2.04200822,136.15,136.07,6.0]
[1642529263571,2.04200822,136.15,136.09,11.0189]
[1642529263772,2.04200822,136.15,136.1,0.25]
[1642529264474,2.04200822,136.17,136.1,42.22539201]
[1642529264673,2.04200822,136.17,136.11,11.0184]
[1642529265071,2.04200822,136.17,136.12,0.25]
[1642529265672,2.04200822,136.17,136.13,11.0175]
[1642529266272,2.04200822,136.18,136.13,11.0175]
[1642529268776,2.04200822,136.18,136.14,0.25]
[1642529268976,2.04200822,136.17,136.15,11.0177]
[1642529269178,2.04200822,136.17,136.16,0.5]
[1642529269977,2.04200822,136.18,136.16,0.5]
[1642529270177,5.07420819,136.18,136.16,0.5]
[1642529270579,5.07420819,136.18,136.15,54.73625482]
[1642529271180,5.07420819,136.18,136.16,0.5]
[1642529271582,5.07420819,136.18,136.15,11.0177]
[1642529272617,5.07420819,136.18,136.16,0.5]
[1642529273487,5.07420819,136.18,136.15,11.0177]
[1642529273884,2.53219996,136.17,136.15,11.0177]
[1642529274491,2.53219996,136.17,136.14,11.0187]
[1642529274686,2.53219996,136.17,136.15,0.5]
[1642529274888,2.53219996,136.17,136.12,2.936]
[1642529275088,2.53219996,136.17,136.13,0.25]
[1642529275688,4.57420818,136.17,136.13,11.0195]
[1642529275888,4.57420818,136.17,136.1,43.50979548]
[1642529276091,2.938,136.16,136.1,43.50979548]
[1642529277089,2.938,136.16,136.11,11.021]
[1642529277388,4.98000822,136.16,136.11,11.021]
[1642529277789,6.0,136.15,136.09,10.47]
[1642529277989,2.938,136.14,136.07,50.1452]
[1642529278191,2.938,136.14,136.08,0.25]
[1642529278391,2.54200822,136.15,136.08,0.25]
[1642529278593,2.04200822,136.15,136.08,46.74309289]
[1642529279591,2.04200822,136.15,136.1,11.0218]
[1642529279791,2.04200822,136.15,136.11,0.25]
[1642529280794,26.22330822,136.17,136.11,0.25]
[1642529281595,26.22330822,136.17,136.12,11.02]
[1642529281794,2.04200822,136.17,136.13,42.6417453]
[1642529282294,2.04200822,136.17,136.11,36.9758]
[1642529282496,2.04200822,136.17,136.13,11.0193]
[1642529282695,2.04200822,136.17,136.08,2.936]
[1642529282696,2.936,136.16,136.09,36.7329]